[Event "*** SCC Grand Prix: Titled Tuesday Blitz"]
[Site "Chess.com"]
[Date "2020.06.23"]
[Round "8"]
[White "Leonid_Starozhilov"]
[Black "chess94cu"]
[Result "1-0"]
[WhiteElo "2723"]
[BlackElo "2550"]
[TimeControl "180+1"]
[EndTime "11:34:12 PDT"]
[Termination "Leonid_Starozhilov won by checkmate"]

1. e4 {[%clk 0:03:00.9]} 1... e5 {[%clk 0:02:58.3]} 2. Nf3 {[%clk 0:03:01]} 2...
Nc6 {[%clk 0:02:57.8]} 3. Bb5 {[%clk 0:03:01.1]} 3... a6 {[%clk 0:02:56.9]} 4.
Bxc6 {[%clk 0:03:00]} 4... dxc6 {[%clk 0:02:55.9]} 5. h3 {[%clk 0:03:00.9]} 5...
Ne7 {[%clk 0:02:52.3]} 6. d4 {[%clk 0:02:52.7]} 6... exd4 {[%clk 0:02:51]} 7.
Qxd4 {[%clk 0:02:53.6]} 7... Qxd4 {[%clk 0:02:48.9]} 8. Nxd4 {[%clk 0:02:54.5]}
8... g6 {[%clk 0:02:42.4]} 9. Nc3 {[%clk 0:02:45.5]} 9... Bg7 {[%clk 0:02:41]}
10. Be3 {[%clk 0:02:43.7]} 10... O-O {[%clk 0:02:40]} 11. O-O-O {[%clk
0:02:43.2]} 11... f5 {[%clk 0:02:40.5]} 12. Bg5 {[%clk 0:02:28.4]} 12... Re8
{[%clk 0:02:31.8]} 13. Bxe7 {[%clk 0:02:28.1]} 13... Rxe7 {[%clk 0:02:26.2]} 14.
exf5 {[%clk 0:02:26.5]} 14... Bxf5 {[%clk 0:02:05.2]} 15. Nxf5 {[%clk
0:02:24.8]} 15... gxf5 {[%clk 0:02:06.1]} 16. Rhe1 {[%clk 0:02:22.4]} 16... Rae8
{[%clk 0:02:02.2]} 17. Rxe7 {[%clk 0:02:09.3]} 17... Rxe7 {[%clk 0:02:03.1]} 18.
Rd3 {[%clk 0:01:23.2]} 18... Kf7 {[%clk 0:01:43.7]} 19. Kd1 {[%clk 0:01:20.5]}
19... b6 {[%clk 0:01:38.5]} 20. b3 {[%clk 0:01:19.7]} 20... Be5 {[%clk
0:01:23.5]} 21. Ne2 {[%clk 0:01:18.3]} 21... Kf6 {[%clk 0:01:22.2]} 22. Nd4
{[%clk 0:01:13.9]} 22... Bxd4 {[%clk 0:01:11.8]} 23. Rxd4 {[%clk 0:01:14.8]}
23... Rg7 {[%clk 0:01:09.8]} 24. g3 {[%clk 0:01:08.7]} 24... Ke5 {[%clk
0:01:10.2]} 25. Rh4 {[%clk 0:01:03.8]} 25... c5 {[%clk 0:01:04.6]} 26. Ke2
{[%clk 0:01:01.3]} 26... a5 {[%clk 0:01:04.7]} 27. Ke3 {[%clk 0:00:48.6]} 27...
Re7 {[%clk 0:01:02.8]} 28. Rh6 {[%clk 0:00:43.1]} 28... Rf7 {[%clk 0:00:32.7]}
29. f4+ {[%clk 0:00:38.9]} 29... Kd5 {[%clk 0:00:32.1]} 30. c4# {[%clk
0:00:39.6]} 1-0

[Event "*** SCC Grand Prix: Titled Tuesday Blitz"]
[Site "Chess.com"]
[Date "2020.06.23"]
[Round "8"]
[White "PavelChernomordik"]
[Black "Grandmaster2B"]
[Result "1-0"]
[WhiteElo "2323"]
[BlackElo "2407"]
[TimeControl "180+1"]
[EndTime "11:34:12 PDT"]
[Termination "PavelChernomordik won by resignation"]

1. e4 {[%clk 0:03:00.9]} 1... c5 {[%clk 0:02:57.2]} 2. Nc3 {[%clk 0:02:59.7]}
2... Nc6 {[%clk 0:02:54.4]} 3. Bb5 {[%clk 0:02:56.7]} 3... Nd4 {[%clk
0:02:42.3]} 4. Bc4 {[%clk 0:02:55]} 4... Nf6 {[%clk 0:02:28]} 5. Nge2 {[%clk
0:02:47.5]} 5... d6 {[%clk 0:02:22.2]} 6. d3 {[%clk 0:02:43.2]} 6... Bg4 {[%clk
0:02:16.3]} 7. f3 {[%clk 0:02:36.1]} 7... Bd7 {[%clk 0:02:02.7]} 8. Nxd4 {[%clk
0:02:33.8]} 8... cxd4 {[%clk 0:02:03.6]} 9. Ne2 {[%clk 0:02:33.3]} 9... b5
{[%clk 0:01:32.8]} 10. Bb3 {[%clk 0:02:31.6]} 10... Qb6 {[%clk 0:01:32.7]} 11.
O-O {[%clk 0:02:28]} 11... g6 {[%clk 0:01:31.5]} 12. f4 {[%clk 0:02:22.3]} 12...
Bg7 {[%clk 0:01:27.7]} 13. e5 {[%clk 0:02:12.8]} 13... Ng4 {[%clk 0:01:17.8]}
14. h3 {[%clk 0:02:07.8]} 14... Nh6 {[%clk 0:01:10.9]} 15. g4 {[%clk 0:02:02]}
15... O-O {[%clk 0:00:58.6]} 16. Qe1 {[%clk 0:01:50.7]} 16... a5 {[%clk
0:00:49.2]} 17. a3 {[%clk 0:01:48.6]} 17... Qc5 {[%clk 0:00:34.7]} 18. Qh4
{[%clk 0:01:36.3]} 18... dxe5 {[%clk 0:00:14.6]} 19. fxe5 {[%clk 0:01:29.5]}
19... Qxe5 {[%clk 0:00:13.4]} 20. Rf2 {[%clk 0:01:28.5]} 20... a4 {[%clk
0:00:06.6]} 21. Ba2 {[%clk 0:01:26.4]} 21... g5 {[%clk 0:00:04.2]} 22. Bxg5
{[%clk 0:01:23.5]} 22... Qd6 {[%clk 0:00:03.7]} 23. Bxe7 {[%clk 0:01:21.7]}
23... Qg6 {[%clk 0:00:01.7]} 24. Nf4 {[%clk 0:01:17.8]} 24... Nf5 {[%clk
0:00:01.5]} 25. Nxg6 {[%clk 0:01:14]} 25... Nxh4 {[%clk 0:00:01.6]} 26. Nxh4
{[%clk 0:01:13.4]} 26... Rfe8 {[%clk 0:00:02.5]} 27. Bxf7+ {[%clk 0:01:11.2]}
27... Kh8 {[%clk 0:00:01.9]} 28. Bxe8 {[%clk 0:01:10.1]} 28... Rxe8 {[%clk
0:00:02.8]} 29. Bf6 {[%clk 0:01:07.9]} 1-0

[Event "*** SCC Grand Prix: Titled Tuesday Blitz"]
[Site "Chess.com"]
[Date "2020.06.23"]
[Round "8"]
[White "luizwas"]
[Black "NiranjanNavalgund"]
[Result "0-1"]
[WhiteElo "1803"]
[BlackElo "2429"]
[TimeControl "180+1"]
[EndTime "11:34:13 PDT"]
[Termination "NiranjanNavalgund won by resignation"]

1. e4 {[%clk 0:03:00.9]} 1... c5 {[%clk 0:00:46]} 2. Nf3 {[%clk 0:02:59.4]} 2...
Nc6 {[%clk 0:00:46.3]} 3. Bb5 {[%clk 0:02:58.3]} 3... g6 {[%clk 0:00:46.3]} 4.
O-O {[%clk 0:02:56.7]} 4... Bg7 {[%clk 0:00:46.5]} 5. Re1 {[%clk 0:02:57.3]}
5... e5 {[%clk 0:00:46.8]} 6. c3 {[%clk 0:02:56.3]} 6... Nge7 {[%clk 0:00:47.1]}
7. Na3 {[%clk 0:02:50]} 7... d6 {[%clk 0:00:46.6]} 8. Nc2 {[%clk 0:02:50.2]}
8... O-O {[%clk 0:00:46.8]} 9. d4 {[%clk 0:02:50.5]} 9... cxd4 {[%clk
0:00:47.7]} 10. cxd4 {[%clk 0:02:51]} 10... exd4 {[%clk 0:00:47.5]} 11. Ncxd4
{[%clk 0:02:51.5]} 11... Nxd4 {[%clk 0:00:48.2]} 12. Nxd4 {[%clk 0:02:51.7]}
12... d5 {[%clk 0:00:49.1]} 13. e5 {[%clk 0:02:41.2]} 13... Nf5 {[%clk
0:00:49.2]} 14. Nxf5 {[%clk 0:02:36.5]} 14... Bxf5 {[%clk 0:00:50.1]} 15. Bd3
{[%clk 0:02:31.6]} 15... Qd7 {[%clk 0:00:47.9]} 16. Bf4 {[%clk 0:02:29.5]} 16...
Rad8 {[%clk 0:00:45.7]} 17. Rc1 {[%clk 0:02:20.7]} 17... Rfe8 {[%clk 0:00:46.2]}
18. Bg3 {[%clk 0:02:14.4]} 18... Bxd3 {[%clk 0:00:45.7]} 19. Qxd3 {[%clk
0:02:15.3]} 19... d4 {[%clk 0:00:45.6]} 20. f3 {[%clk 0:02:07.7]} 20... Qd5
{[%clk 0:00:45.6]} 21. Qe4 {[%clk 0:01:44.7]} 21... Qxa2 {[%clk 0:00:44.8]} 22.
Qxb7 {[%clk 0:01:42.8]} 22... d3 {[%clk 0:00:43.8]} 23. Rcd1 {[%clk 0:01:41.5]}
23... Qc4 {[%clk 0:00:42.4]} 24. Qxa7 {[%clk 0:01:30.7]} 24... Bf8 {[%clk
0:00:41.8]} 25. Kh1 {[%clk 0:01:24.2]} 25... Bc5 {[%clk 0:00:40.4]} 26. Qc7
{[%clk 0:01:04.7]} 26... d2 {[%clk 0:00:40.5]} 27. Rf1 {[%clk 0:01:02.6]} 27...
Qxf1+ {[%clk 0:00:40.1]} 28. Rxf1 {[%clk 0:01:00.1]} 28... d1=Q {[%clk
0:00:40.3]} 29. Re1 {[%clk 0:00:42]} 29... Bb4 {[%clk 0:00:37.7]} 0-1

[Event "*** SCC Grand Prix: Titled Tuesday Blitz"]
[Site "Chess.com"]
[Date "2020.06.23"]
[Round "8"]
[White "Sueetin"]
[Black "jonaszmb"]
[Result "0-1"]
[WhiteElo "2348"]
[BlackElo "2471"]
[TimeControl "180+1"]
[EndTime "11:34:16 PDT"]
[Termination "jonaszmb won by resignation"]

1. d4 {[%clk 0:03:00.9]} 1... d5 {[%clk 0:02:57.9]} 2. c4 {[%clk 0:02:58.7]}
2... Bf5 {[%clk 0:02:57.9]} 3. Nc3 {[%clk 0:02:41.7]} 3... e6 {[%clk 0:02:57.6]}
4. cxd5 {[%clk 0:02:41.2]} 4... exd5 {[%clk 0:02:57.5]} 5. Qb3 {[%clk
0:02:37.2]} 5... Nc6 {[%clk 0:02:57.5]} 6. a3 {[%clk 0:02:37.4]} 6... Nxd4
{[%clk 0:02:47]} 7. Qa4+ {[%clk 0:02:37.4]} 7... Nc6 {[%clk 0:02:46.5]} 8. e4
{[%clk 0:02:33.1]} 8... dxe4 {[%clk 0:02:42.7]} 9. Bb5 {[%clk 0:02:31.3]} 9...
Bd7 {[%clk 0:02:38.4]} 10. Nge2 {[%clk 0:02:26.7]} 10... a6 {[%clk 0:02:33.3]}
11. Bc4 {[%clk 0:02:01.7]} 11... b5 {[%clk 0:02:24.3]} 12. Bxf7+ {[%clk
0:02:00.6]} 12... Kxf7 {[%clk 0:02:24.2]} 13. Qxe4 {[%clk 0:01:54.8]} 13... Nf6
{[%clk 0:02:22.6]} 14. Qh4 {[%clk 0:01:52.6]} 14... Be7 {[%clk 0:02:18.3]} 15.
O-O {[%clk 0:01:34.8]} 15... Re8 {[%clk 0:02:18]} 16. Bg5 {[%clk 0:01:32.4]}
16... h6 {[%clk 0:02:16.3]} 17. Bxh6 {[%clk 0:01:31.1]} 17... gxh6 {[%clk
0:02:15.8]} 18. Qxh6 {[%clk 0:01:26.2]} 18... Rg8 {[%clk 0:02:10.9]} 19. Nf4
{[%clk 0:01:16.6]} 19... Ne5 {[%clk 0:02:01]} 20. Rfe1 {[%clk 0:01:11.9]} 20...
Bd6 {[%clk 0:01:57]} 21. Re3 {[%clk 0:00:35.6]} 21... Neg4 {[%clk 0:01:55.3]}
22. Qh4 {[%clk 0:00:16.9]} 22... Bxf4 {[%clk 0:01:55.1]} 23. Rf3 {[%clk
0:00:16.9]} 23... Bxh2+ {[%clk 0:01:36.4]} 24. Kf1 {[%clk 0:00:13.1]} 24... Bd6
{[%clk 0:01:25.3]} 25. Qh5+ {[%clk 0:00:10]} 25... Rg6 {[%clk 0:01:25.5]} 26.
Qh7+ {[%clk 0:00:09.3]} 26... Rg7 {[%clk 0:01:25.9]} 27. Qh5+ {[%clk 0:00:09.2]}
27... Kg8 {[%clk 0:01:26.5]} 28. Qh4 {[%clk 0:00:04.7]} 28... Nh2+ {[%clk
0:01:25.7]} 29. Ke2 {[%clk 0:00:05.2]} 29... Nxf3 {[%clk 0:01:24.9]} 30. gxf3
{[%clk 0:00:06.1]} 30... Qe7+ {[%clk 0:01:21.4]} 31. Kd2 {[%clk 0:00:02.5]}
31... Re8 {[%clk 0:01:19]} 32. Rh1 {[%clk 0:00:01.8]} 32... Ne4+ {[%clk
0:01:14.8]} 33. fxe4 {[%clk 0:00:01.6]} 33... Qxh4 {[%clk 0:01:14.7]} 34. Rxh4
{[%clk 0:00:02.5]} 34... Rf8 {[%clk 0:01:13.5]} 0-1

[Event "*** SCC Grand Prix: Titled Tuesday Blitz"]
[Site "Chess.com"]
[Date "2020.06.23"]
[Round "8"]
[White "Lion-Al-Messi"]
[Black "Manukyan_Artak"]
[Result "1-0"]
[WhiteElo "2453"]
[BlackElo "2336"]
[TimeControl "180+1"]
[EndTime "11:34:17 PDT"]
[Termination "Lion-Al-Messi won on time"]

1. e4 {[%clk 0:02:59.8]} 1... c6 {[%clk 0:02:59.5]} 2. Nf3 {[%clk 0:02:59.8]}
2... d5 {[%clk 0:02:57.2]} 3. Nc3 {[%clk 0:03:00.7]} 3... Bg4 {[%clk 0:02:54.8]}
4. h3 {[%clk 0:03:00.4]} 4... Bxf3 {[%clk 0:02:54.4]} 5. Qxf3 {[%clk 0:03:01.3]}
5... Nf6 {[%clk 0:02:55.3]} 6. d3 {[%clk 0:03:01.4]} 6... e6 {[%clk 0:02:54.9]}
7. Bd2 {[%clk 0:03:01.3]} 7... Bb4 {[%clk 0:02:53.1]} 8. e5 {[%clk 0:02:57.4]}
8... Nfd7 {[%clk 0:02:51.9]} 9. Qg3 {[%clk 0:02:57.3]} 9... O-O {[%clk
0:02:35.4]} 10. Bh6 {[%clk 0:02:55.2]} 10... g6 {[%clk 0:02:30.2]} 11. Bxf8
{[%clk 0:02:54.9]} 11... Nxf8 {[%clk 0:02:28]} 12. a3 {[%clk 0:02:54.3]} 12...
Qa5 {[%clk 0:02:23.1]} 13. d4 {[%clk 0:02:47.8]} 13... c5 {[%clk 0:02:19.1]} 14.
O-O-O {[%clk 0:02:47.3]} 14... Bxa3 {[%clk 0:02:02.5]} 15. bxa3 {[%clk
0:02:48.2]} 15... Qxa3+ {[%clk 0:02:02.6]} 16. Kd2 {[%clk 0:02:44.3]} 16... cxd4
{[%clk 0:02:00.2]} 17. Nb5 {[%clk 0:02:23.7]} 17... Qa5+ {[%clk 0:01:46.1]} 18.
c3 {[%clk 0:02:22.8]} 18... Nc6 {[%clk 0:01:36.3]} 19. Be2 {[%clk 0:02:17.5]}
19... a6 {[%clk 0:01:27.6]} 20. Nd6 {[%clk 0:02:15.9]} 20... Nxe5 {[%clk
0:01:12.4]} 21. Ra1 {[%clk 0:02:11.5]} 21... dxc3+ {[%clk 0:01:03.5]} 22. Qxc3
{[%clk 0:01:59.5]} 22... Qxc3+ {[%clk 0:00:57.4]} 23. Kxc3 {[%clk 0:02:00.4]}
23... Nfd7 {[%clk 0:00:46.6]} 24. Nxb7 {[%clk 0:01:59.2]} 24... Nc6 {[%clk
0:00:36.4]} 25. Rxa6 {[%clk 0:01:57.6]} 25... Rc8 {[%clk 0:00:32.7]} 26. Kd2
{[%clk 0:01:50.7]} 26... Nb4 {[%clk 0:00:21.8]} 27. Ra4 {[%clk 0:01:50.1]} 27...
Rc2+ {[%clk 0:00:19.8]} 28. Ke1 {[%clk 0:01:39.4]} 28... Rc1+ {[%clk 0:00:10.3]}
29. Bd1 {[%clk 0:01:38.5]} 29... Nc6 {[%clk 0:00:05.8]} 30. Nd6 {[%clk 0:01:33]}
30... Nde5 {[%clk 0:00:03.8]} 31. Ke2 {[%clk 0:01:25.8]} 31... Rb1 {[%clk
0:00:02.9]} 32. Re1 {[%clk 0:01:24.8]} 32... Rb2+ {[%clk 0:00:01.4]} 33. Kf1
{[%clk 0:01:25]} 1-0

[Event "*** SCC Grand Prix: Titled Tuesday Blitz"]
[Site "Chess.com"]
[Date "2020.06.23"]
[Round "8"]
[White "Supernotar"]
[Black "saikrishnaReturns"]
[Result "1-0"]
[WhiteElo "2800"]
[BlackElo "2635"]
[TimeControl "180+1"]
[EndTime "11:34:18 PDT"]
[Termination "Supernotar won by resignation"]

1. d4 {[%clk 0:03:00.9]} 1... Nf6 {[%clk 0:02:59.7]} 2. c4 {[%clk 0:02:58.6]}
2... g6 {[%clk 0:03:00]} 3. Nc3 {[%clk 0:02:58]} 3... Bg7 {[%clk 0:03:00.6]} 4.
e4 {[%clk 0:02:57.9]} 4... d6 {[%clk 0:03:01.2]} 5. Be2 {[%clk 0:02:58.2]} 5...
O-O {[%clk 0:03:01.7]} 6. Nf3 {[%clk 0:02:58.7]} 6... e5 {[%clk 0:03:01.3]} 7.
O-O {[%clk 0:02:58.9]} 7... Nc6 {[%clk 0:03:01.7]} 8. d5 {[%clk 0:02:59.3]} 8...
Ne7 {[%clk 0:03:02.2]} 9. Ne1 {[%clk 0:02:59.3]} 9... Nd7 {[%clk 0:03:01.3]} 10.
Be3 {[%clk 0:02:59.5]} 10... f5 {[%clk 0:03:01.9]} 11. f3 {[%clk 0:03:00]} 11...
f4 {[%clk 0:03:02.4]} 12. Bf2 {[%clk 0:03:00.5]} 12... g5 {[%clk 0:03:03]} 13.
a4 {[%clk 0:03:00.7]} 13... Rf6 {[%clk 0:02:57.6]} 14. a5 {[%clk 0:02:59.9]}
14... Rh6 {[%clk 0:02:49.5]} 15. b4 {[%clk 0:02:38.5]} 15... Qe8 {[%clk
0:02:45.6]} 16. Kh1 {[%clk 0:02:25.1]} 16... a6 {[%clk 0:02:32.8]} 17. c5 {[%clk
0:02:20.2]} 17... dxc5 {[%clk 0:02:16.5]} 18. b5 {[%clk 0:02:12.5]} 18... Qh5
{[%clk 0:02:06.5]} 19. Bg1 {[%clk 0:02:11.5]} 19... Nf6 {[%clk 0:02:06.6]} 20.
bxa6 {[%clk 0:02:03.7]} 20... bxa6 {[%clk 0:02:02.8]} 21. Rb1 {[%clk 0:02:00.9]}
21... Ng6 {[%clk 0:01:48.9]} 22. d6 {[%clk 0:01:54]} 22... Qh4 {[%clk
0:01:42.7]} 23. Bc4+ {[%clk 0:01:52.1]} 23... Kh8 {[%clk 0:01:35.6]} 24. dxc7
{[%clk 0:01:51.1]} 24... Nh5 {[%clk 0:01:32.2]} 25. Qd8+ {[%clk 0:01:39.1]}
25... Nf8 {[%clk 0:01:31.6]} 26. Ne2 {[%clk 0:01:36.1]} 26... Ng3+ {[%clk
0:00:57.5]} 27. Nxg3 {[%clk 0:01:34]} 27... fxg3 {[%clk 0:00:58.4]} 28. Rb8
{[%clk 0:01:21.4]} 28... Qf4 {[%clk 0:00:49.6]} 29. Qxc8 {[%clk 0:00:53.3]}
29... Rxh2+ {[%clk 0:00:24.9]} 30. Bxh2 {[%clk 0:00:51.6]} 30... Qh4 {[%clk
0:00:25.5]} 31. Qh3 {[%clk 0:00:47.6]} 31... Qxh3 {[%clk 0:00:25.1]} 32. gxh3
{[%clk 0:00:44.7]} 1-0

[Event "*** SCC Grand Prix: Titled Tuesday Blitz"]
[Site "Chess.com"]
[Date "2020.06.23"]
[Round "8"]
[White "nikitakhoroshev"]
[Black "1977Ivan"]
[Result "0-1"]
[WhiteElo "2483"]
[BlackElo "2656"]
[TimeControl "180+1"]
[EndTime "11:34:18 PDT"]
[Termination "1977Ivan won by resignation"]

1. d4 {[%clk 0:03:00.9]} 1... Nf6 {[%clk 0:02:59.2]} 2. c4 {[%clk 0:02:59.1]}
2... e6 {[%clk 0:02:59.5]} 3. Nc3 {[%clk 0:02:58.6]} 3... Bb4 {[%clk 0:02:58.7]}
4. e3 {[%clk 0:02:58.4]} 4... c5 {[%clk 0:02:58.2]} 5. Nf3 {[%clk 0:02:57]} 5...
Nc6 {[%clk 0:02:57.8]} 6. Bd3 {[%clk 0:02:56.9]} 6... Bxc3+ {[%clk 0:02:57.1]}
7. bxc3 {[%clk 0:02:56.7]} 7... d6 {[%clk 0:02:57.7]} 8. O-O {[%clk 0:02:54.6]}
8... e5 {[%clk 0:02:57.7]} 9. Nd2 {[%clk 0:02:52.5]} 9... O-O {[%clk 0:02:57.3]}
10. d5 {[%clk 0:02:47.2]} 10... Ne7 {[%clk 0:02:56.3]} 11. Qc2 {[%clk
0:02:47.4]} 11... h6 {[%clk 0:02:49.4]} 12. h3 {[%clk 0:02:43.3]} 12... Kh8
{[%clk 0:02:30.9]} 13. f4 {[%clk 0:02:39.7]} 13... exf4 {[%clk 0:02:24]} 14.
exf4 {[%clk 0:02:40.6]} 14... g6 {[%clk 0:02:08.1]} 15. g4 {[%clk 0:01:49]}
15... h5 {[%clk 0:02:07.1]} 16. f5 {[%clk 0:01:48.9]} 16... hxg4 {[%clk
0:02:03]} 17. hxg4 {[%clk 0:01:48.8]} 17... gxf5 {[%clk 0:01:15.1]} 18. Nf3
{[%clk 0:01:42.1]} 18... Nxg4 {[%clk 0:01:12.4]} 19. Nh2 {[%clk 0:01:22.4]}
19... Ne5 {[%clk 0:01:04.1]} 20. Be2 {[%clk 0:01:17.6]} 20... f6 {[%clk
0:01:01.2]} 21. Bh6 {[%clk 0:01:06.8]} 21... Rg8+ {[%clk 0:01:00.6]} 22. Kh1
{[%clk 0:01:06.7]} 22... Bd7 {[%clk 0:00:58.4]} 23. Rg1 {[%clk 0:01:06.8]} 23...
N7g6 {[%clk 0:00:56.6]} 24. Bh5 {[%clk 0:01:03.7]} 24... Qe7 {[%clk 0:00:55.3]}
25. Rae1 {[%clk 0:01:01.7]} 25... Qh7 {[%clk 0:00:55]} 26. Qd2 {[%clk
0:01:00.7]} 26... f4 {[%clk 0:00:50.3]} 27. Bxg6 {[%clk 0:00:53.5]} 27... Qxh6
{[%clk 0:00:47.6]} 28. Bb1 {[%clk 0:00:46.8]} 28... Nf3 {[%clk 0:00:44.3]} 29.
Qc2 {[%clk 0:00:42.1]} 29... Rxg1+ {[%clk 0:00:39.5]} 30. Rxg1 {[%clk
0:00:41.7]} 30... Nxg1 {[%clk 0:00:39]} 31. Kxg1 {[%clk 0:00:41.3]} 31... Rg8+
{[%clk 0:00:38.7]} 32. Kf1 {[%clk 0:00:41.5]} 32... Bh3+ {[%clk 0:00:35.1]} 33.
Ke1 {[%clk 0:00:41.6]} 33... Rg1+ {[%clk 0:00:34.5]} 0-1

[Event "*** SCC Grand Prix: Titled Tuesday Blitz"]
[Site "Chess.com"]
[Date "2020.06.23"]
[Round "8"]
[White "Cubitas"]
[Black "TokChess"]
[Result "1-0"]
[WhiteElo "2540"]
[BlackElo "2366"]
[TimeControl "180+1"]
[EndTime "11:34:23 PDT"]
[Termination "Cubitas won by resignation"]

1. Nc3 {[%clk 0:03:00.9]} 1... d5 {[%clk 0:02:56.4]} 2. d4 {[%clk 0:02:56]} 2...
Nf6 {[%clk 0:02:56.2]} 3. Bf4 {[%clk 0:02:55.9]} 3... Bf5 {[%clk 0:02:54.6]} 4.
f3 {[%clk 0:02:54.7]} 4... c5 {[%clk 0:02:46.3]} 5. e4 {[%clk 0:02:48.3]} 5...
dxe4 {[%clk 0:02:44.7]} 6. dxc5 {[%clk 0:02:48.9]} 6... Nc6 {[%clk 0:02:35.7]}
7. Bb5 {[%clk 0:02:24.5]} 7... e6 {[%clk 0:02:19]} 8. Be3 {[%clk 0:01:15.8]}
8... Be7 {[%clk 0:02:08.8]} 9. Qe2 {[%clk 0:01:07.3]} 9... O-O {[%clk
0:02:02.1]} 10. Rd1 {[%clk 0:01:03.7]} 10... Qc7 {[%clk 0:02:02]} 11. fxe4
{[%clk 0:00:53.2]} 11... Nxe4 {[%clk 0:02:01.4]} 12. Nxe4 {[%clk 0:00:53.5]}
12... Bxe4 {[%clk 0:02:01.5]} 13. Nf3 {[%clk 0:00:54.1]} 13... Bxf3 {[%clk
0:01:51.4]} 14. gxf3 {[%clk 0:00:52.2]} 14... Nb4 {[%clk 0:01:46]} 15. Rd7
{[%clk 0:00:49.6]} 15... Qe5 {[%clk 0:01:09.6]} 16. Rxe7 {[%clk 0:00:41.9]}
16... Nxc2+ {[%clk 0:01:08.8]} 17. Kf2 {[%clk 0:00:42.1]} 17... Nxe3 {[%clk
0:01:08.8]} 18. Qxe3 {[%clk 0:00:41.9]} 18... Qxb2+ {[%clk 0:01:08.9]} 19. Be2
{[%clk 0:00:41]} 19... Qxa2 {[%clk 0:00:57.9]} 20. Rxb7 {[%clk 0:00:38]} 20...
Rac8 {[%clk 0:00:55.9]} 21. Rc1 {[%clk 0:00:34.5]} 21... Qd5 {[%clk 0:00:52.8]}
22. Rxa7 {[%clk 0:00:32.5]} 22... Rc6 {[%clk 0:00:37.8]} 23. f4 {[%clk
0:00:31.4]} 23... Rcc8 {[%clk 0:00:29.1]} 24. Bf3 {[%clk 0:00:31.3]} 24... Qf5
{[%clk 0:00:27.2]} 25. c6 {[%clk 0:00:31.4]} 25... h5 {[%clk 0:00:26.1]} 26. c7
{[%clk 0:00:27.1]} 1-0

[Event "*** SCC Grand Prix: Titled Tuesday Blitz"]
[Site "Chess.com"]
[Date "2020.06.23"]
[Round "8"]
[White "m-garcett"]
[Black "Belka1989"]
[Result "1-0"]
[WhiteElo "2066"]
[BlackElo "2297"]
[TimeControl "180+1"]
[EndTime "11:34:23 PDT"]
[Termination "m-garcett won by resignation"]

1. e4 {[%clk 0:03:00.9]} 1... c5 {[%clk 0:02:54.2]} 2. Nf3 {[%clk 0:02:59.6]}
2... d6 {[%clk 0:02:50.8]} 3. d4 {[%clk 0:02:59.8]} 3... cxd4 {[%clk 0:02:51.2]}
4. Nxd4 {[%clk 0:03:00.7]} 4... Nf6 {[%clk 0:02:49.3]} 5. Nc3 {[%clk 0:03:01]}
5... a6 {[%clk 0:02:49.3]} 6. Bg5 {[%clk 0:03:01]} 6... Nbd7 {[%clk 0:02:48.6]}
7. f4 {[%clk 0:02:59.6]} 7... Qc7 {[%clk 0:02:47.7]} 8. Qf3 {[%clk 0:02:58.4]}
8... h6 {[%clk 0:02:46.3]} 9. Bh4 {[%clk 0:02:57.6]} 9... g5 {[%clk 0:02:44.9]}
10. Bf2 {[%clk 0:02:53]} 10... gxf4 {[%clk 0:02:42.2]} 11. O-O-O {[%clk
0:02:53.3]} 11... h5 {[%clk 0:02:21.6]} 12. Kb1 {[%clk 0:02:32.6]} 12... Bh6
{[%clk 0:02:16.8]} 13. g3 {[%clk 0:02:21.4]} 13... Ne5 {[%clk 0:02:14.5]} 14.
Qe2 {[%clk 0:02:12.7]} 14... Bg4 {[%clk 0:02:06.1]} 15. Qe1 {[%clk 0:02:01.8]}
15... Bxd1 {[%clk 0:02:02.9]} 16. Qxd1 {[%clk 0:02:02.7]} 16... e6 {[%clk
0:01:44.1]} 17. Bh3 {[%clk 0:01:58.2]} 17... O-O-O {[%clk 0:01:39.9]} 18. gxf4
{[%clk 0:01:46.1]} 18... Bxf4 {[%clk 0:01:34.8]} 19. Bxe6+ {[%clk 0:01:45.3]}
19... fxe6 {[%clk 0:01:27]} 20. Nxe6 {[%clk 0:01:46.2]} 20... Qc4 {[%clk
0:01:26.6]} 21. Nxf4 {[%clk 0:01:36.8]} 21... Rhg8 {[%clk 0:01:25.1]} 22. Nfd5
{[%clk 0:01:32.7]} 22... Rg2 {[%clk 0:00:45.5]} 23. Nb6+ {[%clk 0:01:31.1]}
23... Kb8 {[%clk 0:00:37.7]} 24. Nxc4 {[%clk 0:01:30.6]} 24... Nxc4 {[%clk
0:00:38.6]} 25. Qd4 {[%clk 0:01:25.4]} 25... Ne5 {[%clk 0:00:33.7]} 26. Qa7+
{[%clk 0:01:23.4]} 26... Kc8 {[%clk 0:00:31.5]} 27. Bb6 {[%clk 0:01:18.4]} 27...
Rdg8 {[%clk 0:00:26.7]} 28. Qa8+ {[%clk 0:01:16.1]} 28... Kd7 {[%clk 0:00:27.5]}
29. Qxb7+ {[%clk 0:01:16.4]} 29... Ke6 {[%clk 0:00:28]} 30. Nd5 {[%clk
0:01:00.2]} 30... Nxe4 {[%clk 0:00:25.3]} 31. Nf4+ {[%clk 0:00:57.8]} 31... Kf5
{[%clk 0:00:21.5]} 32. Nxg2 {[%clk 0:00:56.4]} 32... Rxg2 {[%clk 0:00:22.4]} 33.
Rf1+ {[%clk 0:00:54.2]} 33... Ke6 {[%clk 0:00:19.7]} 34. Qxe4 {[%clk 0:00:52.7]}
1-0